[Event "Titled Tuesday Blitz March 28 Early 2023"]
[White "Martinez Alcantara, Jose Eduardo"]
[Black "Shubenkova, Veronika"]
[WhiteFideId "3805662"]
[BlackFideId "44124040"]
[WhiteElo "2712"]
[BlackElo "2027"]
[Result "1-0"]
[Round "05"]
[TimeControl "180+2"]
[Date "2023.03.28"]
[WhiteClock "0:01:25"]
[BlackClock "0:01:24"]

1. e4 {[%clk 0:03:00]}  e6 {[%clk 0:03:00]} 2. d4 {[%clk 0:03:00]}  d5 {[%clk 0:03:00]} 3. Nd2 {[%clk 0:03:01]}  Nf6 {[%clk 0:03:01]} 4. e5 {[%clk 0:03:00]}  Nfd7 {[%clk 0:03:00]} 5. c3 {[%clk 0:03:01]}  c5 {[%clk 0:03:01]} 6. f4 {[%clk 0:03:02]}  Nc6 {[%clk 0:03:01]} 7. Ndf3 {[%clk 0:03:03]}  a6 {[%clk 0:03:00]} 8. Bd3 {[%clk 0:03:01]}  b5 {[%clk 0:03:00]} 9. Ne2 {[%clk 0:03:01]}  Qb6 {[%clk 0:03:00]} 10. O-O {[%clk 0:02:59]}  Bb7 {[%clk 0:03:00]} 11. Kh1 {[%clk 0:02:59]}  c4 {[%clk 0:03:00]} 12. Bc2 {[%clk 0:02:59]}  g6 {[%clk 0:03:00]} 13. Be3 {[%clk 0:02:57]}  Be7 {[%clk 0:03:00]} 14. b3 {[%clk 0:02:53]}  h5 {[%clk 0:03:00]} 15. Qd2 {[%clk 0:02:50]}  Na5 {[%clk 0:02:58]} 16. Rfb1 {[%clk 0:02:49]}  O-O-O {[%clk 0:02:55]} 17. Bf2 {[%clk 0:02:43]}  f6 {[%clk 0:02:54]} 18. Bxg6 {[%clk 0:02:42]}  Rdg8 {[%clk 0:02:53]} 19. Bc2 {[%clk 0:02:39]}  fxe5 {[%clk 0:02:50]} 20. fxe5 {[%clk 0:02:40]}  h4 {[%clk 0:02:49]} 21. Nf4 {[%clk 0:02:39]}  Nf8 {[%clk 0:02:41]} 22. h3 {[%clk 0:02:33]}  Kb8 {[%clk 0:02:40]} 23. Qe1 {[%clk 0:02:29]}  Nc6 {[%clk 0:02:34]} 24. bxc4 {[%clk 0:02:22]}  dxc4 {[%clk 0:02:34]} 25. Be4 {[%clk 0:02:23]}  Nd8 {[%clk 0:02:33]} 26. a4 {[%clk 0:02:18]}  b4 {[%clk 0:02:29]} 27. cxb4 {[%clk 0:02:17]}  Bg5 {[%clk 0:02:25]} 28. Nxg5 {[%clk 0:02:16]}  Rxg5 {[%clk 0:02:24]} 29. a5 {[%clk 0:02:13]}  Qb5 {[%clk 0:02:20]} 30. Bxh4 {[%clk 0:02:05]}  Bxe4 {[%clk 0:02:04]} 31. Bxg5 {[%clk 0:02:03]}  Bxb1 {[%clk 0:02:04]} 32. Rxb1 {[%clk 0:02:04]}  Nf7 {[%clk 0:02:03]} 33. Bf6 {[%clk 0:02:03]}  Rh7 {[%clk 0:01:59]} 34. d5 {[%clk 0:02:03]}  Qb7 {[%clk 0:01:45]} 35. dxe6 {[%clk 0:01:46]}  Nxe6 {[%clk 0:01:45]} 36. Nxe6 {[%clk 0:01:44]}  Rxh3+ {[%clk 0:01:44]} 37. Kg1 {[%clk 0:01:44]}  Rh6 {[%clk 0:01:39]} 38. Rd1 {[%clk 0:01:43]}  Rg6 {[%clk 0:01:37]} 39. Qf2 {[%clk 0:01:41]}  Qc6 {[%clk 0:01:30]} 40. Nc5 {[%clk 0:01:34]}  Nh6 {[%clk 0:01:27]} 41. Rd8+ {[%clk 0:01:32]}  Kc7 {[%clk 0:01:27]} 42. Ne6+ {[%clk 0:01:27]}  Qxe6 {[%clk 0:01:25]} 43. Qa7+ {[%clk 0:01:25]}  Kc6 {[%clk 0:01:24]} 44. Qb6# {[%clk 0:01:25]} 1-0


[Site "https://www.chess.com"]

[Event "Titled Tuesday Blitz March 28 Early 2023"]
[White "Pichot, Alan"]
[Black "Tica, Sven"]
[WhiteFideId "110973"]
[BlackFideId "14526948"]
[WhiteElo "2573"]
[BlackElo "2348"]
[Result "1-0"]
[Round "05"]
[TimeControl "180+2"]
[Date "2023.03.28"]
[WhiteClock "0:01:34"]
[BlackClock "0:02:00"]

1. e4 {[%clk 0:02:58]}  g6 {[%clk 0:03:00]} 2. d4 {[%clk 0:02:58]}  Bg7 {[%clk 0:03:00]} 3. Nf3 {[%clk 0:02:58]}  d6 {[%clk 0:03:00]} 4. Bc4 {[%clk 0:02:57]}  e6 {[%clk 0:03:00]} 5. O-O {[%clk 0:02:55]}  Nd7 {[%clk 0:02:59]} 6. Re1 {[%clk 0:02:54]}  Ne7 {[%clk 0:03:00]} 7. Bf1 {[%clk 0:02:54]}  O-O {[%clk 0:02:57]} 8. c4 {[%clk 0:02:54]}  c5 {[%clk 0:02:55]} 9. Nc3 {[%clk 0:02:53]}  a6 {[%clk 0:02:53]} 10. Be3 {[%clk 0:02:44]}  Qc7 {[%clk 0:02:52]} 11. Qd2 {[%clk 0:02:42]}  b6 {[%clk 0:02:42]} 12. Rad1 {[%clk 0:02:37]}  Rd8 {[%clk 0:02:33]} 13. Bg5 {[%clk 0:02:18]}  f6 {[%clk 0:02:24]} 14. Bh4 {[%clk 0:02:16]}  cxd4 {[%clk 0:02:21]} 15. Nxd4 {[%clk 0:02:15]}  Nc5 {[%clk 0:02:20]} 16. b4 {[%clk 0:02:12]}  Nb7 {[%clk 0:02:19]} 17. Rc1 {[%clk 0:01:49]}  e5 {[%clk 0:02:18]} 18. Nd5 {[%clk 0:01:47]}  Nxd5 {[%clk 0:02:08]} 19. cxd5 {[%clk 0:01:48]}  Qf7 {[%clk 0:02:04]} 20. Ne6 {[%clk 0:01:46]}  Bxe6 {[%clk 0:01:59]} 21. dxe6 {[%clk 0:01:46]}  Qe7 {[%clk 0:01:59]} 22. Qd5 {[%clk 0:01:47]}  Rdc8 {[%clk 0:01:59]} 23. Rxc8+ {[%clk 0:01:46]}  Rxc8 {[%clk 0:02:00]} 24. Bxa6 {[%clk 0:01:46]}  Rc7 {[%clk 0:02:00]} 25. Bxb7 {[%clk 0:01:38]}  Rxb7 {[%clk 0:02:01]} 26. Rc1 {[%clk 0:01:38]}  Bf8 {[%clk 0:02:00]} 27. Bxf6 {[%clk 0:01:34]} 1-0


[Site "https://www.chess.com"]

[Event "Titled Tuesday Blitz March 28 Early 2023"]
[White "Flores, Diego"]
[Black "Jain Kashish Manoj"]
[WhiteFideId "108049"]
[BlackFideId "35081098"]
[WhiteElo "2606"]
[BlackElo "2191"]
[Result "1-0"]
[Round "05"]
[TimeControl "180+2"]
[Date "2023.03.28"]
[WhiteClock "0:00:17"]
[BlackClock "0:00:03"]

1. c4 {[%clk 0:02:56]}  c5 {[%clk 0:02:53]} 2. g3 {[%clk 0:02:53]}  g6 {[%clk 0:02:52]} 3. Bg2 {[%clk 0:02:53]}  Bg7 {[%clk 0:02:51]} 4. Nc3 {[%clk 0:02:54]}  Nc6 {[%clk 0:02:48]} 5. a3 {[%clk 0:02:53]}  Nf6 {[%clk 0:02:41]} 6. Rb1 {[%clk 0:02:49]}  a5 {[%clk 0:02:39]} 7. d3 {[%clk 0:02:50]}  O-O {[%clk 0:02:37]} 8. e4 {[%clk 0:02:50]}  Ne8 {[%clk 0:02:35]} 9. Nge2 {[%clk 0:02:48]}  Nc7 {[%clk 0:02:32]} 10. O-O {[%clk 0:02:48]}  Ne6 {[%clk 0:02:32]} 11. f4 {[%clk 0:02:44]}  d6 {[%clk 0:02:31]} 12. h3 {[%clk 0:02:42]}  Ned4 {[%clk 0:02:29]} 13. Nxd4 {[%clk 0:02:28]}  Nxd4 {[%clk 0:02:11]} 14. b4 {[%clk 0:02:28]}  axb4 {[%clk 0:02:04]} 15. axb4 {[%clk 0:02:29]}  cxb4 {[%clk 0:01:47]} 16. Rxb4 {[%clk 0:02:03]}  Qa5 {[%clk 0:00:58]} 17. Ra4 {[%clk 0:01:54]}  Qxc3 {[%clk 0:00:18]} 18. Rxa8 {[%clk 0:01:54]}  Nc2 {[%clk 0:00:13]} 19. Kh2 {[%clk 0:01:51]}  Nb4 {[%clk 0:00:07]} 20. Bd2 {[%clk 0:01:49]}  Qb2 {[%clk 0:00:08]} 21. Be3 {[%clk 0:01:11]}  h5 {[%clk 0:00:06]} 22. Rf2 {[%clk 0:00:46]}  Qc3 {[%clk 0:00:05]} 23. Bf1 {[%clk 0:00:46]}  Kh7 {[%clk 0:00:04]} 24. Qd2 {[%clk 0:00:43]}  Qb3 {[%clk 0:00:04]} 25. Be2 {[%clk 0:00:39]}  Qb1 {[%clk 0:00:03]} 26. Rf1 {[%clk 0:00:38]}  Qb3 {[%clk 0:00:04]} 27. d4 {[%clk 0:00:32]}  Nc2 {[%clk 0:00:03]} 28. Bf2 {[%clk 0:00:29]}  e5 {[%clk 0:00:02]} 29. Bd1 {[%clk 0:00:27]}  Qxc4 {[%clk 0:00:02]} 30. Be2 {[%clk 0:00:25]}  Qc7 {[%clk 0:00:03]} 31. Rc1 {[%clk 0:00:24]}  Qd7 {[%clk 0:00:02]} 32. Rxc2 {[%clk 0:00:23]}  Qxh3+ {[%clk 0:00:03]} 33. Kg1 {[%clk 0:00:24]}  exd4 {[%clk 0:00:03]} 34. Bf1 {[%clk 0:00:22]}  Qg4 {[%clk 0:00:03]} 35. Qe2 {[%clk 0:00:19]}  Qd7 {[%clk 0:00:04]} 36. Qd3 {[%clk 0:00:19]}  Qg4 {[%clk 0:00:03]} 37. Be2 {[%clk 0:00:19]}  Qh3 {[%clk 0:00:03]} 38. Bf1 {[%clk 0:00:19]}  Qg4 {[%clk 0:00:03]} 39. Rc7 {[%clk 0:00:20]}  h4 {[%clk 0:00:02]} 40. Qe2 {[%clk 0:00:19]}  Qe6 {[%clk 0:00:02]} 41. f5 {[%clk 0:00:20]}  gxf5 {[%clk 0:00:02]} 42. Qh5+ {[%clk 0:00:20]}  Kg8 {[%clk 0:00:02]} 43. Qxf5 {[%clk 0:00:20]}  Qh6 {[%clk 0:00:02]} 44. Rcxc8 {[%clk 0:00:18]}  hxg3 {[%clk 0:00:03]} 45. Rxf8+ {[%clk 0:00:18]}  Bxf8 {[%clk 0:00:04]} 46. Qg4+ {[%clk 0:00:17]}  Kh8 {[%clk 0:00:03]} 47. Qxg3 {[%clk 0:00:17]} 1-0


[Site "https://www.chess.com"]

[Event "Titled Tuesday Blitz March 28 Early 2023"]
[White "Toropov, Pavel"]
[Black "Real_OceanStorm"]
[WhiteFideId "24129178"]
[WhiteElo "2182"]
[BlackElo "2788"]
[Result "0-1"]
[Round "05"]
[TimeControl "180+2"]
[Date "2023.03.28"]
[WhiteClock "0:00:15"]
[BlackClock "0:01:28"]

1. e4 {[%clk 0:03:00]}  d5 {[%clk 0:02:55]} 2. exd5 {[%clk 0:03:00]}  Qxd5 {[%clk 0:02:56]} 3. Nc3 {[%clk 0:03:00]}  Qe6+ {[%clk 0:02:56]} 4. Nge2 {[%clk 0:02:54]}  Nf6 {[%clk 0:02:51]} 5. d4 {[%clk 0:02:55]}  c6 {[%clk 0:02:50]} 6. g3 {[%clk 0:02:51]}  h5 {[%clk 0:02:50]} 7. h4 {[%clk 0:02:40]}  Qd6 {[%clk 0:02:48]} 8. Bf4 {[%clk 0:02:32]}  Qd8 {[%clk 0:02:44]} 9. Bg2 {[%clk 0:02:27]}  Bg4 {[%clk 0:02:43]} 10. d5 {[%clk 0:02:11]}  Qb6 {[%clk 0:02:35]} 11. O-O {[%clk 0:01:59]}  cxd5 {[%clk 0:02:34]} 12. Nxd5 {[%clk 0:01:54]}  Nxd5 {[%clk 0:02:34]} 13. Qxd5 {[%clk 0:01:23]}  Bxe2 {[%clk 0:02:23]} 14. Qxb7 {[%clk 0:01:11]}  Bxf1 {[%clk 0:02:14]} 15. Kxf1 {[%clk 0:01:03]}  Qxb7 {[%clk 0:02:11]} 16. Bxb7 {[%clk 0:01:02]}  e5 {[%clk 0:02:11]} 17. Be3 {[%clk 0:01:01]}  Nd7 {[%clk 0:01:54]} 18. Bxa8 {[%clk 0:01:01]}  Bc5 {[%clk 0:01:45]} 19. Bc6 {[%clk 0:01:00]}  Bxe3 {[%clk 0:01:45]} 20. fxe3 {[%clk 0:00:54]}  Rh6 {[%clk 0:01:45]} 21. Bxd7+ {[%clk 0:00:53]}  Kxd7 {[%clk 0:01:46]} 22. Rd1+ {[%clk 0:00:49]}  Ke7 {[%clk 0:01:46]} 23. Rd5 {[%clk 0:00:46]}  Rc6 {[%clk 0:01:43]} 24. c3 {[%clk 0:00:46]}  Ke6 {[%clk 0:01:43]} 25. Ra5 {[%clk 0:00:46]}  a6 {[%clk 0:01:43]} 26. Ke2 {[%clk 0:00:45]}  f6 {[%clk 0:01:44]} 27. e4 {[%clk 0:00:43]}  g5 {[%clk 0:01:44]} 28. Rd5 {[%clk 0:00:32]}  gxh4 {[%clk 0:01:33]} 29. gxh4 {[%clk 0:00:32]}  Rc4 {[%clk 0:01:33]} 30. Kf3 {[%clk 0:00:26]}  f5 {[%clk 0:01:32]} 31. Ra5 {[%clk 0:00:27]}  Rxe4 {[%clk 0:01:32]} 32. Rxa6+ {[%clk 0:00:27]}  Ke7 {[%clk 0:01:32]} 33. a4 {[%clk 0:00:24]}  Rxh4 {[%clk 0:01:32]} 34. a5 {[%clk 0:00:24]}  e4+ {[%clk 0:01:33]} 35. Ke3 {[%clk 0:00:22]}  Rh3+ {[%clk 0:01:33]} 36. Kd4 {[%clk 0:00:20]}  Rd3+ {[%clk 0:01:33]} 37. Ke5 {[%clk 0:00:20]}  e3 {[%clk 0:01:33]} 38. Kxf5 {[%clk 0:00:18]}  Rd5+ {[%clk 0:01:32]} 39. Ke4 {[%clk 0:00:13]}  e2 {[%clk 0:01:33]} 40. Kxd5 {[%clk 0:00:13]}  e1=Q {[%clk 0:01:33]} 41. Rb6 {[%clk 0:00:14]}  Qh1+ {[%clk 0:01:33]} 42. Kc5 {[%clk 0:00:13]}  h4 {[%clk 0:01:33]} 43. a6 {[%clk 0:00:14]}  h3 {[%clk 0:01:33]} 44. Rb7+ {[%clk 0:00:14]}  Kf6 {[%clk 0:01:32]} 45. Kb6 {[%clk 0:00:14]}  h2 {[%clk 0:01:33]} 46. a7 {[%clk 0:00:14]}  Qxb7+ {[%clk 0:01:30]} 47. Kxb7 {[%clk 0:00:14]}  h1=Q+ {[%clk 0:01:30]} 48. Kb8 {[%clk 0:00:15]}  Qh2+ {[%clk 0:01:30]} 49. Kc8 {[%clk 0:00:15]}  Qg2 {[%clk 0:01:30]} 50. Kb8 {[%clk 0:00:14]}  Qxb2+ {[%clk 0:01:30]} 51. Kc8 {[%clk 0:00:14]}  Qa2 {[%clk 0:01:29]} 52. Kb8 {[%clk 0:00:14]}  Qb3+ {[%clk 0:01:29]} 53. Kc8 {[%clk 0:00:14]}  Qe6+ {[%clk 0:01:28]} 54. Kb8 {[%clk 0:00:15]}  Qb6+ {[%clk 0:01:28]} 55. Ka8 {[%clk 0:00:15]}  Qc7 {[%clk 0:01:28]} 56. c4 {[%clk 0:00:15]}  Qc8# {[%clk 0:01:28]} 0-1


[Site "https://www.chess.com"]

[Event "Titled Tuesday Blitz March 28 Early 2023"]
[White "Koellner, Ruben Gideon"]
[Black "Wagner, Dennis"]
[WhiteFideId "12993093"]
[BlackFideId "24650684"]
[WhiteElo "2303"]
[BlackElo "2470"]
[Result "0-1"]
[Round "05"]
[TimeControl "180+2"]
[Date "2023.03.28"]
[WhiteClock "0:00:08"]
[BlackClock "0:00:55"]

1. d4 {[%clk 0:01:49]}  Nf6 {[%clk 0:02:59]} 2. Nf3 {[%clk 0:01:43]}  d5 {[%clk 0:02:57]} 3. e3 {[%clk 0:01:44]}  c5 {[%clk 0:02:41]} 4. c3 {[%clk 0:01:43]}  cxd4 {[%clk 0:02:37]} 5. exd4 {[%clk 0:01:44]}  Nc6 {[%clk 0:02:33]} 6. Nbd2 {[%clk 0:01:43]}  Bf5 {[%clk 0:02:31]} 7. Bb5 {[%clk 0:01:43]}  Rc8 {[%clk 0:02:25]} 8. Qa4 {[%clk 0:01:41]}  Bd7 {[%clk 0:02:02]} 9. Ne5 {[%clk 0:01:24]}  Nxe5 {[%clk 0:01:54]} 10. dxe5 {[%clk 0:01:25]}  Bxb5 {[%clk 0:01:52]} 11. Qxb5+ {[%clk 0:01:26]}  Qd7 {[%clk 0:01:52]} 12. Qb3 {[%clk 0:01:07]}  Ng4 {[%clk 0:01:48]} 13. Nf3 {[%clk 0:01:02]}  e6 {[%clk 0:01:41]} 14. h3 {[%clk 0:00:59]}  Nh6 {[%clk 0:01:40]} 15. Bxh6 {[%clk 0:01:00]}  gxh6 {[%clk 0:01:41]} 16. O-O {[%clk 0:00:57]}  Be7 {[%clk 0:01:37]} 17. Nd4 {[%clk 0:00:55]}  O-O {[%clk 0:01:29]} 18. f4 {[%clk 0:00:54]}  Kh8 {[%clk 0:01:13]} 19. f5 {[%clk 0:00:49]}  Bc5 {[%clk 0:01:13]} 20. Rad1 {[%clk 0:00:32]}  exf5 {[%clk 0:01:07]} 21. Kh1 {[%clk 0:00:31]}  Rce8 {[%clk 0:00:55]} 22. Nxf5 {[%clk 0:00:20]}  Rxe5 {[%clk 0:00:55]} 23. Nxh6 {[%clk 0:00:20]}  Rh5 {[%clk 0:00:55]} 24. Rf6 {[%clk 0:00:10]}  Rxh3+ {[%clk 0:00:54]} 25. gxh3 {[%clk 0:00:08]}  Qxh3# {[%clk 0:00:55]} 0-1


[Site "https://www.chess.com"]

[Event "Titled Tuesday Blitz March 28 Early 2023"]
[White "Ozdemir, Serhan Berat"]
[Black "Pulpan, Jakub"]
[WhiteFideId "6374611"]
[BlackFideId "302759"]
[WhiteElo "2015"]
[BlackElo "2484"]
[Result "0-1"]
[Round "05"]
[TimeControl "180+2"]
[Date "2023.03.28"]
[WhiteClock "0:00:01"]
[BlackClock "0:00:06"]

1. e4 {[%clk 0:03:00]}  c6 {[%clk 0:02:50]} 2. d4 {[%clk 0:03:00]}  g6 {[%clk 0:02:41]} 3. Nc3 {[%clk 0:03:00]}  Bg7 {[%clk 0:02:39]} 4. Bf4 {[%clk 0:02:53]}  d5 {[%clk 0:02:39]} 5. Nf3 {[%clk 0:02:43]}  dxe4 {[%clk 0:02:35]} 6. Nxe4 {[%clk 0:02:44]}  Nf6 {[%clk 0:02:36]} 7. Nxf6+ {[%clk 0:02:40]}  exf6 {[%clk 0:02:37]} 8. Bc4 {[%clk 0:02:31]}  O-O {[%clk 0:02:33]} 9. O-O {[%clk 0:02:22]}  Nd7 {[%clk 0:02:32]} 10. Bb3 {[%clk 0:02:07]}  Nb6 {[%clk 0:02:23]} 11. h3 {[%clk 0:02:04]}  a5 {[%clk 0:02:21]} 12. a3 {[%clk 0:02:00]}  a4 {[%clk 0:02:20]} 13. Ba2 {[%clk 0:02:00]}  Be6 {[%clk 0:02:20]} 14. Bxe6 {[%clk 0:01:52]}  fxe6 {[%clk 0:02:21]} 15. Re1 {[%clk 0:01:51]}  Re8 {[%clk 0:02:17]} 16. Qd3 {[%clk 0:01:45]}  Qd5 {[%clk 0:02:16]} 17. Rad1 {[%clk 0:01:41]}  Nc4 {[%clk 0:02:15]} 18. Bc1 {[%clk 0:01:37]}  b5 {[%clk 0:02:13]} 19. Nd2 {[%clk 0:01:35]}  Nxd2 {[%clk 0:02:11]} 20. Bxd2 {[%clk 0:01:31]}  Rad8 {[%clk 0:02:12]} 21. Be3 {[%clk 0:01:28]}  Rd7 {[%clk 0:01:56]} 22. b3 {[%clk 0:01:24]}  Ra8 {[%clk 0:01:52]} 23. c4 {[%clk 0:01:23]}  Qf5 {[%clk 0:01:41]} 24. Qxf5 {[%clk 0:01:15]}  gxf5 {[%clk 0:01:29]} 25. b4 {[%clk 0:01:10]}  Rad8 {[%clk 0:01:18]} 26. Rc1 {[%clk 0:01:10]}  f4 {[%clk 0:01:09]} 27. Bxf4 {[%clk 0:01:06]}  Rxd4 {[%clk 0:01:08]} 28. Bc7 {[%clk 0:01:01]}  R8d7 {[%clk 0:01:07]} 29. Bb6 {[%clk 0:00:59]}  Rxc4 {[%clk 0:00:58]} 30. Rxc4 {[%clk 0:00:59]}  bxc4 {[%clk 0:00:59]} 31. Rxe6 {[%clk 0:00:58]}  Rd3 {[%clk 0:00:51]} 32. Rxc6 {[%clk 0:00:57]}  Rxa3 {[%clk 0:00:43]} 33. Rxc4 {[%clk 0:00:57]}  Rb3 {[%clk 0:00:43]} 34. Bd4 {[%clk 0:00:51]}  Bf8 {[%clk 0:00:22]} 35. Rc8 {[%clk 0:00:40]}  Kf7 {[%clk 0:00:19]} 36. Bc5 {[%clk 0:00:40]}  Bh6 {[%clk 0:00:15]} 37. Ra8 {[%clk 0:00:39]}  a3 {[%clk 0:00:14]} 38. b5 {[%clk 0:00:38]}  Bc1 {[%clk 0:00:15]} 39. b6 {[%clk 0:00:34]}  Rb1 {[%clk 0:00:15]} 40. Kh2 {[%clk 0:00:31]}  h5 {[%clk 0:00:15]} 41. h4 {[%clk 0:00:28]}  Kg6 {[%clk 0:00:14]} 42. g3 {[%clk 0:00:27]}  Kf5 {[%clk 0:00:13]} 43. Bxa3 {[%clk 0:00:24]}  Bxa3 {[%clk 0:00:11]} 44. Rxa3 {[%clk 0:00:23]}  Rxb6 {[%clk 0:00:11]} 45. Ra5+ {[%clk 0:00:21]}  Kg6 {[%clk 0:00:12]} 46. Kg2 {[%clk 0:00:22]}  Rb2 {[%clk 0:00:12]} 47. Kf3 {[%clk 0:00:22]}  Rc2 {[%clk 0:00:12]} 48. Rd5 {[%clk 0:00:21]}  Ra2 {[%clk 0:00:07]} 49. Rd3 {[%clk 0:00:21]}  Rb2 {[%clk 0:00:07]} 50. Ke3 {[%clk 0:00:22]}  Ra2 {[%clk 0:00:07]} 51. Rd4 {[%clk 0:00:22]}  Ra3+ {[%clk 0:00:07]} 52. Ke4 {[%clk 0:00:22]}  Ra2 {[%clk 0:00:08]} 53. f3 {[%clk 0:00:22]}  Re2+ {[%clk 0:00:07]} 54. Kd5 {[%clk 0:00:22]}  Rg2 {[%clk 0:00:07]} 55. g4 {[%clk 0:00:21]}  Rh2 {[%clk 0:00:08]} 56. Ke6 {[%clk 0:00:18]}  Re2+ {[%clk 0:00:05]} 57. Kd5 {[%clk 0:00:16]}  Rh2 {[%clk 0:00:05]} 58. Re4 {[%clk 0:00:14]}  hxg4 {[%clk 0:00:04]} 59. Rxg4+ {[%clk 0:00:12]}  Kf5 {[%clk 0:00:05]} 60. Kd4 {[%clk 0:00:11]}  Re2 {[%clk 0:00:03]} 61. Re4 {[%clk 0:00:10]}  Rf2 {[%clk 0:00:03]} 62. Ke3 {[%clk 0:00:09]}  Rh2 {[%clk 0:00:03]} 63. Rg4 {[%clk 0:00:10]}  Rh1 {[%clk 0:00:03]} 64. Rf4+ {[%clk 0:00:10]}  Ke5 {[%clk 0:00:04]} 65. Rg4 {[%clk 0:00:10]}  Kf5 {[%clk 0:00:04]} 66. Kf2 {[%clk 0:00:08]}  Ra1 {[%clk 0:00:04]} 67. Kg3 {[%clk 0:00:08]}  Ra8 {[%clk 0:00:04]} 68. Rg7 {[%clk 0:00:08]}  Rb8 {[%clk 0:00:03]} 69. h5 {[%clk 0:00:08]}  Rb1 {[%clk 0:00:03]} 70. h6 {[%clk 0:00:07]}  Rh1 {[%clk 0:00:01]} 71. h7 {[%clk 0:00:07]}  Ke6 {[%clk 0:00:01]} 72. Kf4 {[%clk 0:00:07]}  Rh4+ {[%clk 0:00:01]} 73. Kg3 {[%clk 0:00:06]}  Rh1 {[%clk 0:00:02]} 74. Kf2 {[%clk 0:00:06]}  Kf5 {[%clk 0:00:02]} 75. Ke3 {[%clk 0:00:06]}  Rh4 {[%clk 0:00:02]} 76. f4 {[%clk 0:00:05]}  Rh3+ {[%clk 0:00:03]} 77. Kd4 {[%clk 0:00:06]}  Kxf4 {[%clk 0:00:03]} 78. Kd5 {[%clk 0:00:07]}  Kf5 {[%clk 0:00:04]} 79. Kd6 {[%clk 0:00:07]}  Ke4 {[%clk 0:00:03]} 80. Ke6 {[%clk 0:00:07]}  f5 {[%clk 0:00:04]} 81. Kf6 {[%clk 0:00:07]}  f4 {[%clk 0:00:04]} 82. Kf7 {[%clk 0:00:05]}  f3 {[%clk 0:00:05]} 83. Kg8 {[%clk 0:00:06]}  f2 {[%clk 0:00:05]} 84. Rf7 {[%clk 0:00:06]}  Rf3 {[%clk 0:00:05]} 85. h8=Q {[%clk 0:00:03]}  Rxf7 {[%clk 0:00:05]} 86. Qh4+ {[%clk 0:00:01]}  Rf4 {[%clk 0:00:06]} 87. Qe7+ {[%clk 0:00:01]}  Kf3 {[%clk 0:00:06]} 88. Qb7+ {[%clk 0:00:02]}  Kg3 {[%clk 0:00:06]} 89. Qb3+ {[%clk 0:00:01]}  Kh2 {[%clk 0:00:06]} 0-1


[Site "https://www.chess.com"]

[Event "Titled Tuesday Blitz March 28 Early 2023"]
[White "Iniyan, P"]
[Black "Maxfan2008"]
[WhiteFideId "25002767"]
[WhiteElo "2449"]
[BlackElo "2426"]
[Result "1-0"]
[Round "05"]
[TimeControl "180+2"]
[Date "2023.03.28"]
[WhiteClock "0:01:27"]
[BlackClock "0:01:01"]

1. c4 {[%clk 0:03:00]}  Nf6 {[%clk 0:02:59]} 2. Nf3 {[%clk 0:03:01]}  c6 {[%clk 0:02:59]} 3. g3 {[%clk 0:03:02]}  d5 {[%clk 0:02:59]} 4. Bg2 {[%clk 0:03:02]}  Bf5 {[%clk 0:02:59]} 5. O-O {[%clk 0:03:03]}  e6 {[%clk 0:03:00]} 6. b3 {[%clk 0:03:02]}  Nbd7 {[%clk 0:03:00]} 7. Bb2 {[%clk 0:03:02]}  Bd6 {[%clk 0:03:00]} 8. d3 {[%clk 0:03:03]}  O-O {[%clk 0:03:00]} 9. Nh4 {[%clk 0:03:03]}  Bg4 {[%clk 0:02:59]} 10. h3 {[%clk 0:03:03]}  Bh5 {[%clk 0:02:59]} 11. Nf3 {[%clk 0:03:03]}  Re8 {[%clk 0:02:55]} 12. Nbd2 {[%clk 0:03:02]}  e5 {[%clk 0:02:55]} 13. e4 {[%clk 0:03:02]}  Qe7 {[%clk 0:02:48]} 14. exd5 {[%clk 0:02:58]}  cxd5 {[%clk 0:02:49]} 15. Re1 {[%clk 0:02:58]}  e4 {[%clk 0:02:39]} 16. dxe4 {[%clk 0:02:51]}  dxe4 {[%clk 0:02:39]} 17. Qc2 {[%clk 0:02:52]}  Bg6 {[%clk 0:02:34]} 18. Nh4 {[%clk 0:02:51]}  e3 {[%clk 0:02:01]} 19. Nxg6 {[%clk 0:02:50]}  exf2+ {[%clk 0:02:01]} 20. Kxf2 {[%clk 0:02:45]}  Bxg3+ {[%clk 0:01:59]} 21. Kxg3 {[%clk 0:02:39]}  Qd6+ {[%clk 0:01:53]} 22. Kf2 {[%clk 0:02:34]}  fxg6 {[%clk 0:01:52]} 23. Ne4 {[%clk 0:02:29]}  Qf4+ {[%clk 0:01:51]} 24. Kg1 {[%clk 0:02:29]}  Nh5 {[%clk 0:01:43]} 25. Rad1 {[%clk 0:02:25]}  Ne5 {[%clk 0:01:40]} 26. Qf2 {[%clk 0:02:22]}  Qh6 {[%clk 0:01:16]} 27. Nd6 {[%clk 0:02:20]}  Rf8 {[%clk 0:01:16]} 28. Qe3 {[%clk 0:01:44]}  Nf3+ {[%clk 0:01:01]} 29. Bxf3 {[%clk 0:01:42]}  Rxf3 {[%clk 0:01:01]} 30. Qxf3 {[%clk 0:01:33]}  Nf4 {[%clk 0:01:01]} 31. Kh2 {[%clk 0:01:27]} 1-0


[Site "https://www.chess.com"]

[Event "Titled Tuesday Blitz March 28 Early 2023"]
[White "Samant Aditya S"]
[Black "Alahakoon, Isuru"]
[WhiteFideId "35080580"]
[BlackFideId "9900993"]
[WhiteElo "2362"]
[BlackElo "1995"]
[Result "1-0"]
[Round "05"]
[TimeControl "180+2"]
[Date "2023.03.28"]
[WhiteClock "0:00:07"]
[BlackClock "0:00:06"]

1. e4 {[%clk 0:03:00]}  d5 {[%clk 0:02:59]} 2. exd5 {[%clk 0:02:58]}  Nf6 {[%clk 0:02:59]} 3. Nf3 {[%clk 0:02:56]}  Qxd5 {[%clk 0:02:58]} 4. d4 {[%clk 0:02:47]}  Bg4 {[%clk 0:02:56]} 5. Be2 {[%clk 0:02:44]}  Nc6 {[%clk 0:02:51]} 6. O-O {[%clk 0:02:26]}  O-O-O {[%clk 0:02:50]} 7. Be3 {[%clk 0:02:06]}  e6 {[%clk 0:02:47]} 8. h3 {[%clk 0:02:02]}  h5 {[%clk 0:02:45]} 9. a3 {[%clk 0:01:54]}  Bd6 {[%clk 0:02:44]} 10. c4 {[%clk 0:01:45]}  Qf5 {[%clk 0:02:44]} 11. Nc3 {[%clk 0:01:28]}  Bxh3 {[%clk 0:02:16]} 12. Nh4 {[%clk 0:01:28]}  Qh7 {[%clk 0:02:04]} 13. gxh3 {[%clk 0:01:27]}  g5 {[%clk 0:02:04]} 14. Nf3 {[%clk 0:01:28]}  g4 {[%clk 0:02:03]} 15. Ng5 {[%clk 0:01:27]}  Qg7 {[%clk 0:01:53]} 16. h4 {[%clk 0:01:20]}  Ne7 {[%clk 0:01:46]} 17. Qa4 {[%clk 0:00:58]}  a6 {[%clk 0:01:38]} 18. c5 {[%clk 0:00:58]}  Bf4 {[%clk 0:00:48]} 19. Bxf4 {[%clk 0:00:53]}  Nfd5 {[%clk 0:00:46]} 20. Nxd5 {[%clk 0:00:47]}  Nxd5 {[%clk 0:00:47]} 21. Be5 {[%clk 0:00:46]}  f6 {[%clk 0:00:45]} 22. Nxe6 {[%clk 0:00:45]}  Qe7 {[%clk 0:00:30]} 23. c6 {[%clk 0:00:41]}  fxe5 {[%clk 0:00:26]} 24. Bxa6 {[%clk 0:00:20]}  Nb6 {[%clk 0:00:19]} 25. Bxb7+ {[%clk 0:00:15]}  Kb8 {[%clk 0:00:20]} 26. Qb3 {[%clk 0:00:15]}  exd4 {[%clk 0:00:14]} 27. Nxd8 {[%clk 0:00:14]}  Rxd8 {[%clk 0:00:13]} 28. Qg3 {[%clk 0:00:12]}  Nc4 {[%clk 0:00:07]} 29. Rfe1 {[%clk 0:00:12]}  Qc5 {[%clk 0:00:06]} 30. Rac1 {[%clk 0:00:11]}  Qd5 {[%clk 0:00:07]} 31. Rxc4 {[%clk 0:00:07]}  Qxc4 {[%clk 0:00:06]} 32. Re7 {[%clk 0:00:07]} 1-0


[Site "https://www.chess.com"]